bitfinex-derivatives/quotes_SOLF0:USTF0_20241101
["timestamp","ask_amount","ask_price","bid_price","bid_amount"]
[1730425790536,10.0142117,167.85,167.77,1.2894]
[1730425790936,2.9834,167.82,167.77,4.2736]
[1730425791842,10.0142117,167.85,167.77,1.2894]
[1730425792034,2.9837,167.81,167.77,1.2894]
[1730425792232,10.0142117,167.85,167.74,2.711]
[1730425792541,10.0142117,167.85,167.75,6.2044]
[1730425793133,2.9837,167.8,167.75,6.2044]
[1730425793739,2.984,167.79,167.74,1.354]
[1730425794235,2.9836,167.81,167.74,1.354]
[1730425794437,10.0142117,167.83,167.74,1.354]
[1730425794843,2.9838,167.8,167.74,1.354]
[1730425795238,10.0142117,167.83,167.75,2.9845]
[1730425795636,10.0142117,167.83,167.74,1.354]
[1730425795836,2.9842,167.78,167.74,1.354]
[1730425796237,2.9842,167.78,167.73,2.9848]
[1730425796841,2.9843,167.77,167.72,2.9851]
[1730425800144,9.40467915,167.78,167.73,9.40527915]
[1730425801550,9.40437915,167.79,167.74,2.9846]
[1730425803647,2.984,167.78,167.74,2.9846]
[1730425804348,6.42047915,167.77,167.72,3.22]
[1730425804757,21.12,167.83,167.7,2.5656]
[1730425804758,6.42047915,167.73,167.7,1.2668]
[1730425805053,6.42047915,167.73,167.68,3.22]
[1730425805249,2.9851,167.72,167.68,3.22]
[1730425805449,6.42047915,167.75,167.69,6.42047915]
[1730425805651,6.42047915,167.78,167.71,6.42047915]
[1730425805847,6.42047915,167.78,167.69,2.6433]
[1730425805848,6.42047915,167.73,167.69,2.6433]
[1730425806451,6.42047915,167.73,167.66,6.42047915]
[1730425806452,10.03946989,167.74,167.65,3.22]
[1730425806949,10.03946989,167.74,167.66,2.986]
[1730425807144,10.03946989,167.74,167.63,2.6433]
[1730425807347,10.03946989,167.71,167.64,1.49358177]
[1730425807542,10.03946989,167.71,167.63,5.8833]
[1730425808047,10.03946989,167.71,167.63,2.6433]
[1730425808443,10.03946989,167.69,167.57,10.03946989]
[1730425808653,10.03946989,167.69,167.42,8.98016194]
[1730425808654,10.03946989,167.64,167.52,10.03946989]
[1730425808843,10.03946989,167.62,167.53,3.88519613]
[1730425809049,2.9873,167.6,167.53,6.87349613]
[1730425809250,10.03946989,167.62,167.49,10.03946989]
[1730425809546,10.03946989,167.62,167.5,3.88557232]
[1730425809748,10.03946989,167.6,167.51,1.49445089]
[1730425810051,10.03946989,167.6,167.47,12.65976989]
[1730425810250,10.03946989,167.6,167.48,3.88611076]
[1730425810450,10.03946989,167.6,167.49,1.49465815]
[1730425810653,10.03946989,167.6,167.47,12.65976989]
[1730425810958,2.9876,167.58,167.53,2.9885]
[1730425811143,3.26,167.57,167.53,2.9885]
[1730425811847,3.26,167.57,167.48,1.49469317]
[1730425812043,3.26,167.57,167.52,2.9887]
[1730425812448,3.26,167.57,167.53,2.9883]
[1730425813146,2.9875,167.59,167.49,10.03946989]
[1730425813346,3.26,167.58,167.54,2.9883]
[1730425813757,3.26,167.58,167.49,10.03946989]
[1730425813758,3.26,167.58,167.52,2.9885]
[1730425814058,3.26,167.58,167.49,10.03946989]
[1730425814352,3.26,167.58,167.47,2.6203]
[1730425814652,3.26,167.58,167.48,1.49472491]
[1730425814854,3.26,167.58,167.47,2.6203]
[1730425815861,2.9882,167.55,167.5,2.989]
[1730425816249,10.03946989,167.57,167.47,2.6203]
[1730425816749,3.26,167.56,167.47,2.6203]
[1730425817150,10.03946989,167.57,167.47,2.6203]
[1730425817354,3.26,167.56,167.47,2.6203]
[1730425817553,6.2481,167.56,167.47,2.6203]
[1730425817750,10.03946989,167.6,167.49,10.03946989]
[1730425817957,10.03946989,167.6,167.54,2.9882]
[1730425817958,2.9875,167.59,167.54,2.9882]
[1730425818250,3.26,167.58,167.49,10.03946989]
[1730425818753,3.26,167.57,167.49,10.03946989]
[1730425819152,3.26,167.57,167.47,2.6203]
[1730425820049,2.988,167.56,167.51,2.9888]
[1730425821565,10.03946989,167.55,167.49,2.9892]
[1730425821757,10.03946989,167.55,167.42,12.43137978]
[1730425822063,3.26,167.57,167.42,14.02856989]
[1730425822064,10.03946989,167.53,167.42,14.02856989]
[1730425822260,3.26,167.52,167.42,14.02856989]
[1730425822465,10.03946989,167.53,167.42,14.02856989]
[1730425822466,2.9889,167.51,167.42,14.02856989]
[1730425822763,3.26,167.5,167.42,14.02856989]
[1730425822962,3.26,167.5,167.42,3.9891]
[1730425823565,6.2492,167.5,167.45,2.9898]
[1730425824562,2.9885,167.54,167.49,2.989]
[1730425824769,3.26,167.53,167.49,2.989]
[1730425825768,6.2487,167.53,167.48,2.9893]
[1730425826268,2.9883,167.54,167.49,2.9892]
[1730425826567,3.26,167.53,167.49,2.9892]
[1730425826779,10.03946989,167.52,167.42,3.9891]
[1730425827156,10.03946989,167.5,167.42,3.9891]
[1730425827557,2.9895,167.48,167.43,2.9901]
[1730425827758,6.2495,167.48,167.43,2.9901]
[1730425828166,3.26,167.48,167.44,2.99]
[1730425828361,3.26,167.48,167.42,2.6074]
[1730425828864,3.26,167.48,167.41,2.9905]
[1730425829072,3.26,167.48,167.4,1.3168]
[1730425829572,2.9893,167.49,167.44,2.9899]
[1730425829764,3.26,167.48,167.44,2.9899]
[1730425829958,3.26,167.48,167.4,1.3168]
[1730425830158,6.2495,167.48,167.44,2.9901]
[1730425830370,6.2495,167.48,167.4,1.3168]
[1730425830869,10.03946989,167.47,167.33,2.39299464]
[1730425831067,2.9901,167.44,167.35,1.3168]
[1730425831267,3.26,167.43,167.35,1.3168]
[1730425831470,3.26,167.42,167.35,1.3168]
[1730425832165,12.19606989,167.49,167.36,10.03946989]
[1730425832373,3.26,167.48,167.36,10.03946989]
[1730425832870,10.03946989,167.47,167.36,10.03946989]
[1730425833060,10.03946989,167.44,167.37,2.9913]
[1730425833263,10.03946989,167.44,167.35,1.3168]
[1730425833264,3.26,167.43,167.35,1.3168]
[1730425833572,2.9907,167.41,167.35,1.3168]
[1730425833870,2.9907,167.41,167.37,2.9913]
[1730425834575,3.26,167.43,167.37,2.9913]
[1730425834576,2.9905,167.42,167.37,2.9913]
[1730425835373,10.03946989,167.41,167.35,1.3168]
[1730425835771,2.9908,167.4,167.35,4.3083]
[1730425836569,10.03946989,167.41,167.35,1.3168]
[1730425836765,10.03946989,167.39,167.26,10.03946989]
[1730425837071,3.5,167.38,167.31,2.9923]
[1730425837267,10.03946989,167.36,167.26,3.8398]
[1730425837870,13.53946989,167.38,167.26,3.8398]
[1730425838066,3.5,167.37,167.26,13.87926989]
[1730425838284,3.5,167.37,167.26,3.8398]
[1730425838772,2.9918,167.35,167.3,2.9924]
[1730425838971,13.53946989,167.38,167.27,10.03946989]
[1730425839373,13.53946989,167.38,167.32,2.9922]
[1730425839374,2.9913,167.37,167.32,2.9922]
[1730425839574,13.53946989,167.38,167.27,10.03946989]
[1730425839984,2.9915,167.37,167.27,10.03946989]
[1730425840277,10.03946989,167.36,167.26,3.8398]
[1730425840578,2.9921,167.33,167.26,3.8398]
[1730425840770,10.03946989,167.36,167.26,3.8398]
[1730425840970,13.03106989,167.36,167.3,2.9924]
[1730425841174,10.03946989,167.36,167.26,3.8398]
[1730425841780,13.53946989,167.36,167.26,3.8398]
[1730425841982,2.9917,167.35,167.3,2.9924]
[1730425842173,13.53946989,167.36,167.26,3.8398]
[1730425842485,10.03946989,167.32,167.26,3.8398]
[1730425842674,3.5,167.31,167.26,1.3385]
[1730425842869,3.5,167.31,167.17,3.5]
[1730425842870,10.03946989,167.27,167.2,1.2942]
[1730425843380,30.95953409,167.4,167.18,1.3613]
[1730425843381,10.03946989,167.25,167.18,1.3613]
[1730425843676,10.03946989,167.25,167.2,2.9944]
[1730425844084,13.03296989,167.25,167.2,2.9944]
[1730425844380,10.03946989,167.28,167.18,1.3613]
[1730425844683,30.95953409,167.4,167.18,1.3613]
[1730425844684,3.5,167.29,167.18,11.40076989]
[1730425844983,10.03946989,167.31,167.21,10.03946989]
[1730425845885,13.03206989,167.31,167.21,10.03946989]
[1730425846078,10.03946989,167.31,167.24,2.9936]
[1730425846473,2.9927,167.3,167.24,2.9936]
[1730425846885,2.9927,167.3,167.19,3.5]
[1730425847083,10.03946989,167.31,167.19,3.5]
[1730425847686,2.9927,167.3,167.19,3.5]
[1730425848381,13.53946989,167.31,167.19,3.5]
[1730425848586,10.03946989,167.28,167.18,14.90076989]
[1730425849081,10.03946989,167.28,167.23,2.9937]
[1730425849286,10.03946989,167.28,167.18,14.90076989]
[1730425849688,6.4926,167.3,167.24,2.9935]
[1730425849889,6.4926,167.3,167.18,14.90076989]
[1730425850388,13.03246989,167.28,167.18,4.8613]
[1730425850691,10.03946989,167.28,167.18,4.8613]
[1730425851683,13.03256989,167.28,167.18,4.8613]
[1730425851887,10.03946989,167.23,167.18,1.3613]
[1730425852190,10.03946989,167.23,167.11,3.5]
[1730425852390,10.03946989,167.23,167.12,1.10086177]
[1730425852694,10.03946989,167.23,167.11,3.9065]
[1730425853097,10.03946989,167.18,167.07,10.03946989]
[1730425853298,3.5,167.19,167.07,10.03946989]
[1730425853487,3.5,167.19,167.08,1.1010917]
[1730425853683,2.9948,167.18,167.07,10.03946989]
[1730425853990,2.1606,167.29,167.09,10.03946989]
[1730425853991,13.53946989,167.23,167.09,10.03946989]
[1730425854188,10.03946989,167.28,167.14,10.03946989]
[1730425854395,10.03946989,167.28,167.15,7.3539]
[1730425854798,10.03946989,167.25,167.21,2.9941]
[1730425854995,10.03946989,167.25,167.15,7.3539]
[1730425856597,10.03946989,167.25,167.2,2.9942]
[1730425857295,13.03306989,167.25,167.2,2.9942]
[1730425857496,10.03946989,167.25,167.15,7.3539]
[1730425857801,10.03946989,167.25,167.15,1.3013]
[1730425858005,10.03946989,167.25,167.18,2.9947]
[1730425858295,10.03946989,167.25,167.15,1.3013]
[1730425858499,10.03946989,167.22,167.15,1.3013]
[1730425858991,13.03366989,167.22,167.17,2.9947]
[1730425859386,3.76,167.24,167.15,1.3013]
[1730425859695,6.7537,167.24,167.15,1.3013]
[1730425859898,10.03946989,167.25,167.15,1.3013]
[1730425860100,3.78,167.27,167.22,2.9939]
[1730425860401,1.286,167.29,167.18,10.03946989]
[1730425860588,10.03946989,167.3,167.18,10.03946989]
[1730425860896,3.78,167.32,167.16,3.78]
[1730425860897,10.03946989,167.26,167.16,3.78]
[1730425861196,2.994,167.22,167.17,2.9949]
[1730425861391,2.994,167.22,167.15,1.3013]
[1730425861590,10.03946989,167.23,167.15,1.3013]
[1730425861795,10.03946989,167.26,167.15,11.34076989]
[1730425861990,12.17076989,167.31,167.17,10.03946989]
[1730425862891,2.9927,167.3,167.25,2.9935]
[1730425863289,2.9931,167.28,167.23,2.9937]
[1730425863699,12.17076989,167.31,167.2,3.78]
[1730425863899,2.9927,167.3,167.24,2.9935]
[1730425864302,10.03946989,167.28,167.21,1.3125]
[1730425864796,10.03946989,167.3,167.21,1.3125]
[1730425865097,10.03946989,167.3,167.22,1.3091]
[1730425865799,2.9931,167.27,167.23,2.9937]
[1730425865997,10.03946989,167.28,167.23,2.9937]
[1730425866196,10.03946989,167.28,167.22,1.3091]
[1730425866398,2.9932,167.27,167.22,1.3091]
[1730425867400,2.9932,167.27,167.22,4.3031]
[1730425867790,11.29856989,167.31,167.22,1.3091]
[1730425867993,11.29856989,167.31,167.25,2.9933]
[1730425868596,13.03166989,167.33,167.22,1.3091]
[1730425868993,10.03946989,167.33,167.22,1.3091]
[1730425869199,2.9923,167.32,167.27,2.993]
[1730425869995,2.9923,167.32,167.22,1.3091]
[1730425870198,10.03946989,167.33,167.22,11.34856989]
[1730425870598,2.1453,167.38,167.25,10.03946989]
[1730425870599,10.03946989,167.38,167.25,10.03946989]
[1730425870797,10.03946989,167.5,167.22,1.3091]
[1730425870798,10.03946989,167.4,167.27,10.03946989]
[1730425870993,10.03946989,167.4,167.28,1.2558]
[1730425871504,10.03946989,167.4,167.3,10.03946989]
[1730425871703,10.03946989,167.43,167.38,2.9911]
[1730425871895,1.273,167.47,167.31,3.76]
[1730425871896,10.03946989,167.46,167.33,10.03946989]
[1730425872093,10.03946989,167.46,167.34,3.76]
[1730425872399,10.03946989,167.48,167.37,10.03946989]
[1730425872592,10.03946989,167.45,167.38,2.7005]
[1730425873000,2.9903,167.44,167.38,1.3217]
[1730425873201,10.03946989,167.43,167.37,2.9913]
[1730425873401,10.03946989,167.43,167.35,3.76]
[1730425873707,2.9906,167.41,167.35,3.76]
[1730425873895,10.03946989,167.45,167.35,3.76]
[1730425874094,10.03946989,167.45,167.34,1.3217]
[1730425874294,13.02996989,167.42,167.35,3.76]
[1730425874497,16.09049852,167.43,167.35,3.76]
[1730425874793,19.08089852,167.43,167.35,3.76]
[1730425874999,0.8723,167.47,167.38,2.9911]
[1730425875000,16.09049852,167.46,167.38,2.9911]
[1730425876195,2.9902,167.44,167.38,2.9911]
[1730425876595,16.09049852,167.46,167.35,3.76]
[1730425877109,3.76,167.48,167.35,3.76]
[1730425877304,17.38389852,167.49,167.35,3.76]
[1730425877506,16.09049852,167.52,167.36,16.09049852]
[1730425877907,2.9896,167.47,167.36,16.09049852]
[1730425878408,16.09049852,167.52,167.36,16.09049852]
[1730425878613,2.9888,167.51,167.36,16.09049852]
[1730425878906,16.09049852,167.52,167.36,16.09049852]
[1730425879709,2.9896,167.47,167.4,2.9906]
[1730425879908,16.09049852,167.52,167.36,16.09049852]
[1730425880412,16.09049852,167.49,167.35,3.76]
[1730425881107,2.9899,167.45,167.34,1.3217]
[1730425881307,2.9899,167.45,167.35,3.76]
[1730425882205,3.76,167.53,167.34,1.3217]
[1730425882206,2.9903,167.43,167.34,1.3217]
[1730425882411,16.09049852,167.43,167.34,5.0817]
[1730425882911,2.9908,167.4,167.35,2.9915]
[1730425883799,16.09049852,167.43,167.34,5.0817]
[1730425883995,2.1922,167.45,167.34,5.0817]
[1730425884706,16.09049852,167.46,167.34,5.0817]
[1730425884909,17.95,167.56,167.34,5.0817]
[1730425884910,16.09049852,167.49,167.34,5.0817]
[1730425885106,16.09049852,167.49,167.36,16.09049852]
[1730425885307,19.07979852,167.49,167.44,2.9901]
[1730425885519,19.07979852,167.49,167.36,16.09049852]
[1730425885520,16.09049852,167.53,167.41,4.02]
[1730425885700,16.09049852,167.53,167.42,1.3285]
[1730425886202,2.9892,167.5,167.45,2.9899]
[1730425886606,2.9888,167.52,167.47,2.9895]
[1730425887105,16.09049852,167.53,167.47,2.9895]
[1730425887300,16.09049852,167.53,167.43,1.3628]
[1730425887505,6.2142,167.55,167.43,1.3628]
[1730425887506,2.1942,167.55,167.43,1.3628]
[1730425887805,2.1942,167.55,167.46,2.9896]
[1730425887806,1.324,167.55,167.46,2.9896]
[1730425888006,4.02,167.58,167.47,4.02]
[1730425888312,19.07809852,167.59,167.53,2.9884]
[1730425888713,1.3792,167.61,167.47,4.02]
[1730425888912,2.9872,167.61,167.56,2.9879]
[1730425889216,16.09049852,167.62,167.53,4.02]
[1730425889410,2.9874,167.59,167.54,2.9881]
[1730425890617,16.09049852,167.62,167.45,16.09049852]
[1730425890814,2.9878,167.57,167.52,2.9886]
[1730425891321,2.9876,167.58,167.53,2.9885]
[1730425891508,16.09049852,167.62,167.46,4.02]
[1730425891910,2.9877,167.58,167.5,2.9889]
[1730425892109,2.9877,167.58,167.46,4.02]
[1730425892511,2.9877,167.58,167.54,2.9883]
[1730425892713,2.9873,167.6,167.52,4.02]
[1730425893009,16.09049852,167.62,167.56,2.9879]
[1730425893214,16.09049852,167.62,167.53,4.02]
[1730425893215,2.9869,167.62,167.53,4.02]
[1730425893418,20.11049852,167.65,167.54,2.5957]
[1730425893614,19.07689852,167.65,167.6,2.9871]
[1730425893814,16.09049852,167.65,167.54,3.9066]
[1730425894111,16.09049852,167.65,167.58,2.9874]
[1730425894312,16.09049852,167.58,167.42,2.5957]
[1730425894517,16.09049852,167.54,167.42,2.5957]
[1730425894707,2.989,167.5,167.45,2.9898]
[1730425894915,16.09049852,167.54,167.43,4.02]
[1730425895611,1.3073,167.56,167.43,4.02]
[1730425896013,2.9883,167.54,167.49,2.989]
[1730425896214,1.3073,167.56,167.43,4.02]
[1730425896613,26.12996865,167.57,167.43,4.02]
[1730425896808,4.02,167.6,167.43,30.14996865]
[1730425897004,30.14996865,167.63,167.46,26.12996865]
[1730425897914,26.12996865,167.56,167.43,4.02]
[1730425898411,26.12996865,167.53,167.43,4.02]
[1730425899007,26.12996865,167.53,167.44,2.9901]
[1730425899008,2.989,167.5,167.44,2.9901]
[1730425899215,26.12996865,167.53,167.44,2.9901]
[1730425899516,2.9889,167.51,167.46,2.9896]
[1730425900112,2.9886,167.52,167.47,2.9894]
[1730425900413,2.9886,167.52,167.43,4.02]
[1730425900414,28.35446865,167.56,167.43,4.02]
[1730425900825,2.9886,167.53,167.48,2.9892]
[1730425901720,2.9879,167.56,167.49,4.02]
[1730425901912,26.12996865,167.59,167.5,4.02]
[1730425902417,2.9881,167.55,167.5,7.0088]
[1730425902620,26.12996865,167.59,167.5,4.02]
[1730425902820,27.45546865,167.62,167.5,4.02]
[1730425903717,2.9873,167.6,167.53,2.9883]
[1730425904022,2.9873,167.6,167.5,4.02]
[1730425904023,27.45546865,167.62,167.5,4.02]
[1730425904420,2.9872,167.6,167.51,2.6074]
[1730425904621,27.45546865,167.62,167.51,2.6074]
[1730425904818,2.9871,167.61,167.56,2.9877]
[1730425905025,2.9871,167.61,167.51,3.9028]
[1730425905325,26.12996865,167.66,167.51,3.9028]
[1730425905624,2.9869,167.62,167.52,26.12996865]
[1730425905812,0.8699,167.67,167.52,26.12996865]
[1730425906017,27.42156865,167.69,167.52,26.12996865]
[1730425906018,2.9862,167.66,167.62,2.9868]
[1730425906413,1.2916,167.69,167.58,4.02]
[1730425906614,2.9859,167.68,167.63,2.9865]
[1730425906820,2.9859,167.68,167.59,3.8617]
[1730425907029,4.8899,167.73,167.65,2.9862]
[1730425907030,2.9854,167.7,167.65,2.9862]
[1730425907420,0.8699,167.73,167.64,4.02]
[1730425907716,26.12996865,167.74,167.64,4.02]
[1730425908321,26.12996865,167.72,167.64,4.02]
[1730425909118,26.12996865,167.72,167.6,4.02]
[1730425910425,2.9857,167.69,167.61,2.987]
[1730425910724,26.12996865,167.72,167.61,2.987]
[1730425911126,26.12996865,167.72,167.6,4.02]
[1730425911327,26.12996865,167.72,167.6,7.0071]
[1730425911719,26.12996865,167.72,167.6,4.02]
[1730425913630,2.9859,167.68,167.63,2.9866]
[1730425914323,1.2916,167.77,167.63,2.9866]
[1730425914324,26.12996865,167.81,167.66,26.12996865]
[1730425914531,0.8684,167.83,167.67,4.24]
[1730425914720,0.8684,167.83,167.66,26.12996865]
[1730425915029,26.12996865,167.82,167.67,4.24]
[1730425915524,2.9844,167.76,167.66,26.12996865]
[1730425915733,26.12996865,167.82,167.67,4.24]
[1730425916135,26.12996865,167.82,167.68,2.9857]
[1730425916431,26.12996865,167.82,167.67,4.24]
[1730425917022,26.12996865,167.82,167.67,30.36996865]
[1730425917424,26.12996865,167.82,167.68,1.342]
[1730425918327,0.8684,167.83,167.68,1.342]
[1730425918630,2.9842,167.77,167.68,1.342]
[1730425919030,0.8684,167.83,167.68,1.342]
[1730425919233,0.8684,167.83,167.72,2.985]
[1730425919440,0.8684,167.83,167.73,4.24]
[1730425919733,2.9844,167.76,167.73,4.24]
[1730425920129,0.8684,167.83,167.73,4.24]
[1730425920436,0.8684,167.83,167.73,7.2248]
[1730425920629,0.8684,167.83,167.73,4.24]
[1730425921129,26.12996865,167.82,167.68,2.6158]
[1730425921337,26.12996865,167.79,167.69,4.24]
[1730425921532,1.3741,167.78,167.7,4.24]
[1730425923628,2.9835,167.81,167.72,2.985]
[1730425923828,0.8684,167.83,167.7,5.505]
[1730425924342,1.253,167.85,167.72,26.12996865]
[1730425924543,1.253,167.85,167.73,1.3153]
[1730425924837,2.9834,167.82,167.77,2.984]
[1730425925025,2.9834,167.82,167.78,4.24]
[1730425925333,2.9833,167.82,167.78,7.2238]
[1730425925539,1.253,167.85,167.78,4.24]
[1730425925742,1.3779,167.91,167.78,4.24]
[1730425926042,1.253,167.9,167.79,1.3426]
[1730425926537,1.253,167.9,167.8,4.24]
[1730425926738,26.12996865,167.88,167.78,4.24]
[1730425927428,26.12996865,167.88,167.73,1.3153]
[1730425927429,26.12996865,167.88,167.77,4.24]
[1730425928035,2.9836,167.81,167.77,4.24]
[1730425928931,26.12996865,167.88,167.73,1.3153]
[1730425929240,26.12996865,167.88,167.74,4.24]
[1730425929634,1.253,167.9,167.75,26.12996865]
[1730425929839,2.9831,167.83,167.79,2.9836]
[1730425930143,26.12996865,167.88,167.73,1.3153]
[1730425930327,2.9836,167.81,167.76,2.9843]
[1730425930639,26.12996865,167.88,167.76,2.9843]
[1730425930839,2.9835,167.81,167.77,4.24]
[1730425932040,2.9835,167.81,167.77,7.2241]
[1730425932339,1.253,167.9,167.73,1.3153]
[1730425932536,26.12996865,167.88,167.74,4.24]
[1730425934938,2.9829,167.84,167.77,2.984]
[1730425935133,1.253,167.9,167.77,2.984]
[1730425935338,1.253,167.9,167.74,4.24]
[1730425935638,2.9829,167.84,167.79,2.9835]
[1730425935834,1.253,167.9,167.8,4.24]
[1730425936334,2.9831,167.82,167.8,4.24]
[1730425937337,2.9829,167.83,167.8,4.24]
[1730425938137,1.253,167.9,167.8,4.24]
[1730425938538,1.253,167.9,167.81,4.24]
[1730425938939,1.253,167.9,167.8,4.24]
[1730425939243,2.9822,167.87,167.8,4.24]
[1730425939444,1.253,167.9,167.8,4.24]
[1730425940445,2.983,167.83,167.8,4.24]
[1730425942548,2.9831,167.82,167.8,4.24]
[1730425942738,1.253,167.9,167.75,16.05058074]
[1730425942939,34.00058074,167.88,167.76,4.24]
[1730425943143,2.9826,167.85,167.76,4.24]
[1730425943346,38.24058074,167.88,167.75,4.24]
[1730425944243,2.9827,167.85,167.75,4.24]
[1730425944452,20.29058074,167.88,167.75,4.24]
[1730425944644,16.05058074,167.88,167.75,4.24]
[1730425945049,1.253,167.9,167.75,20.29058074]
[1730425945245,1.253,167.9,167.79,16.05058074]
[1730425946051,1.253,167.9,167.81,2.9832]
[1730425946350,1.253,167.9,167.79,16.05058074]
[1730425946351,1.253,167.9,167.82,4.28]
[1730425946856,2.9828,167.84,167.82,4.28]
[1730425947348,2.9824,167.86,167.82,4.28]
[1730425947540,1.253,167.9,167.82,4.28]
[1730425947743,16.05058074,167.94,167.83,1.3366]
[1730425949252,2.9821,167.88,167.83,4.3194]
[1730425949452,16.05058074,167.94,167.79,16.05058074]
[1730425949641,16.05058074,167.94,167.8,4.28]
[1730425949848,2.9827,167.85,167.81,4.28]
[1730425950047,16.05058074,167.94,167.81,4.28]
[1730425950751,16.05058074,167.94,167.77,2.6786]
[1730425950752,34.00058074,167.94,167.77,2.6786]
[1730425950952,2.9832,167.82,167.78,4.28]
[1730425951855,2.9832,167.82,167.78,7.2637]
[1730425952154,2.9829,167.83,167.78,7.2637]
[1730425952352,16.05058074,167.91,167.78,4.28]
[1730425952654,16.05058074,167.93,167.78,4.28]
[1730425953457,2.9819,167.89,167.79,2.9836]
[1730425953753,16.05058074,167.93,167.79,2.9836]
[1730425953955,2.9818,167.89,167.79,2.9836]
[1730425954157,16.05058074,167.93,167.79,2.9836]
[1730425954560,2.9828,167.84,167.79,2.9836]
[1730425956051,16.05058074,167.93,167.78,4.28]
[1730425956052,16.05058074,167.9,167.78,4.28]
[1730425956249,16.05058074,167.88,167.73,1.3638]
[1730425956449,1.3406,167.87,167.73,5.6438]
[1730425956645,1.3406,167.87,167.73,8.6284]
[1730425957051,2.9841,167.76,167.73,1.3638]
[1730425957355,16.05058074,167.84,167.73,1.3638]
[1730425957558,20.33058074,167.84,167.73,1.3638]
[1730425957752,2.9842,167.76,167.73,1.3638]
[1730425958653,20.33058074,167.84,167.73,1.3638]
[1730425958852,2.9844,167.75,167.73,1.3638]
[1730425959658,2.9845,167.74,167.72,4.28]
[1730425959852,20.33058074,167.84,167.72,4.28]
[1730425960353,2.9846,167.74,167.72,4.28]
[1730425960658,20.33058074,167.84,167.72,4.28]
[1730425960659,2.9839,167.78,167.73,2.9846]
[1730425960958,2.9839,167.78,167.72,4.28]
[1730425961553,2.9836,167.79,167.72,4.28]
[1730425961754,21.67118074,167.87,167.72,4.28]
[1730425962155,21.67118074,167.87,167.72,7.2648]
[1730425962553,21.67118074,167.87,167.72,4.28]
[1730425962750,2.984,167.77,167.73,2.9846]
[1730425963157,2.984,167.77,167.72,4.28]
[1730425963356,2.984,167.77,167.72,7.2648]
[1730425963855,21.67118074,167.87,167.73,2.9845]
[1730425964160,21.67118074,167.87,167.72,4.28]
[1730425964356,2.9836,167.79,167.74,2.9843]
[1730425964556,2.9836,167.79,167.75,1.3237]
[1730425964759,21.67118074,167.87,167.75,1.3237]
[1730425965062,1.3406,167.87,167.78,2.9837]
[1730425965751,1.3406,167.87,167.79,2.9834]
[1730425965955,2.9828,167.84,167.78,4.28]
[1730425966158,2.9828,167.84,167.79,2.9836]
[1730425966353,2.9828,167.84,167.78,4.28]
[1730425967154,2.9825,167.86,167.81,2.9831]
[1730425967760,2.9825,167.86,167.78,4.28]
[1730425967761,1.3269,167.92,167.79,16.05058074]
[1730425968557,1.3403,167.94,167.82,16.05058074]
[1730425968858,1.3403,167.94,167.83,1.3236]
[1730425969056,1.3403,167.94,167.84,4.28]
[1730425969260,16.05058074,167.96,167.84,5.6315]
[1730425970257,2.9818,167.9,167.84,5.6315]
[1730425971162,2.9818,167.9,167.85,2.9825]
[1730425971766,16.05058074,167.96,167.85,2.9825]
[1730425971962,2.9818,167.89,167.85,2.9825]
[1730425972164,2.9818,167.89,167.84,8.6142]
[1730425973763,2.9818,167.89,167.85,2.9825]
[1730425973966,2.9818,167.89,167.84,5.6315]
[1730425974464,16.05058074,167.96,167.84,5.6315]
[1730425974669,165.1325952,167.99,167.84,5.6315]
[1730425974670,181.18317594,167.99,167.84,5.6315]
[1730425974972,1.3803,167.98,167.84,5.6315]
[1730425975156,1.3803,167.98,167.85,2.9825]